[Event "*** Titled Tuesday Blitz"]
[Site "Chess.com"]
[Date "2018.01.02"]
[Round "1"]
[White "oskariot"]
[Black "Elshan1985"]
[Result "1-0"]
[WhiteElo "2397"]
[BlackElo "2665"]
[TimeControl "180+2"]
[EndTime "13:06:25 PST"]
[Termination "oskariot won by resignation"]

1. e4 {[%clk 0:02:55.2]} 1... e5 {[%clk 0:02:59.9]} 2. Nf3 {[%clk 0:02:49.6]}
2... Nc6 {[%clk 0:03:00.9]} 3. Bb5 {[%clk 0:02:45.9]} 3... a6 {[%clk 0:03:01.1]}
4. Ba4 {[%clk 0:02:45.5]} 4... Nf6 {[%clk 0:03:01.7]} 5. O-O {[%clk 0:02:45.8]}
5... Be7 {[%clk 0:03:02.9]} 6. Re1 {[%clk 0:02:46.2]} 6... b5 {[%clk 0:03:03.7]}
7. Bb3 {[%clk 0:02:47.3]} 7... O-O {[%clk 0:03:05.3]} 8. a4 {[%clk 0:02:42.7]}
8... b4 {[%clk 0:03:01.4]} 9. d4 {[%clk 0:02:42.8]} 9... d6 {[%clk 0:03:01.8]}
10. dxe5 {[%clk 0:02:30.5]} 10... dxe5 {[%clk 0:03:02.6]} 11. Qxd8 {[%clk
0:02:28.5]} 11... Rxd8 {[%clk 0:03:04.5]} 12. Nbd2 {[%clk 0:02:21.2]} 12... Bg4
{[%clk 0:03:04.7]} 13. a5 {[%clk 0:02:04.4]} 13... Rab8 {[%clk 0:02:47.6]} 14.
Bc4 {[%clk 0:02:04.7]} 14... Ra8 {[%clk 0:02:40.4]} 15. h3 {[%clk 0:01:54.3]}
15... Bh5 {[%clk 0:02:38.6]} 16. Nb3 {[%clk 0:01:42.7]} 16... Bd6 {[%clk
0:02:14.8]} 17. Bg5 {[%clk 0:01:41.3]} 17... Bxf3 {[%clk 0:02:10.8]} 18. gxf3
{[%clk 0:01:33]} 18... Ne7 {[%clk 0:02:11.5]} 19. f4 {[%clk 0:01:14.2]} 19...
Ng6 {[%clk 0:02:07.5]} 20. f5 {[%clk 0:01:14.5]} 20... Ne7 {[%clk 0:02:06.6]}
21. Bxf6 {[%clk 0:01:13.3]} 21... gxf6 {[%clk 0:02:07.7]} 22. Kg2 {[%clk
0:01:09.1]} 22... Kf8 {[%clk 0:02:08.1]} 23. Kf3 {[%clk 0:01:10.3]} 23... Ra7
{[%clk 0:02:03.1]} 24. Rg1 {[%clk 0:01:06.1]} 24... Nc6 {[%clk 0:01:58.7]} 25.
Rg4 {[%clk 0:00:54.1]} 25... Ke7 {[%clk 0:01:55.1]} 26. Rg7 {[%clk 0:00:54]}
26... Rf8 {[%clk 0:01:56.3]} 27. Rd1 {[%clk 0:00:47.1]} 27... Nd8 {[%clk
0:01:51.3]} 28. Rxh7 {[%clk 0:00:46.6]} 28... Rg8 {[%clk 0:01:52.6]} 29. h4
{[%clk 0:00:41.6]} 29... Ra8 {[%clk 0:01:53.2]} 30. h5 {[%clk 0:00:37.6]} 30...
Rf8 {[%clk 0:01:47.1]} 31. Rg7 {[%clk 0:00:36.1]} 31... c6 {[%clk 0:01:48.4]}
32. h6 {[%clk 0:00:35.4]} 32... Nb7 {[%clk 0:01:50]} 33. h7 {[%clk 0:00:35.2]}
33... Bc7 {[%clk 0:01:51.2]} 34. h8=Q {[%clk 0:00:33.5]} 1-0

[Event "*** Titled Tuesday Blitz"]
[Site "Chess.com"]
[Date "2018.01.02"]
[Round "1"]
[White "EndgameGrinder"]
[Black "GremioPrudente"]
[Result "1-0"]
[WhiteElo "2447"]
[BlackElo "2051"]
[TimeControl "180+2"]
[EndTime "13:06:33 PST"]
[Termination "EndgameGrinder won by checkmate"]

1. e4 {[%clk 0:03:01.9]} 1... e6 {[%clk 0:03:00.3]} 2. d4 {[%clk 0:03:02.1]}
2... d5 {[%clk 0:03:00.1]} 3. Nd2 {[%clk 0:03:02.9]} 3... Nf6 {[%clk 0:02:59.9]}
4. e5 {[%clk 0:03:03.4]} 4... Nfd7 {[%clk 0:02:59.7]} 5. Bd3 {[%clk 0:03:04.2]}
5... c5 {[%clk 0:03:01]} 6. c3 {[%clk 0:03:05]} 6... Nc6 {[%clk 0:03:02.4]} 7.
Ne2 {[%clk 0:03:06]} 7... Qb6 {[%clk 0:03:03.4]} 8. Nf3 {[%clk 0:03:02.1]} 8...
cxd4 {[%clk 0:02:49.4]} 9. cxd4 {[%clk 0:03:04]} 9... f6 {[%clk 0:02:49.4]} 10.
exf6 {[%clk 0:03:03.5]} 10... Nxf6 {[%clk 0:02:49.7]} 11. O-O {[%clk 0:03:05]}
11... Bd6 {[%clk 0:02:45.3]} 12. b3 {[%clk 0:03:05.1]} 12... O-O {[%clk
0:02:42.2]} 13. Bb2 {[%clk 0:03:06.3]} 13... Bd7 {[%clk 0:02:36.8]} 14. Nc3
{[%clk 0:02:52.7]} 14... Rae8 {[%clk 0:02:35.4]} 15. Na4 {[%clk 0:02:52.8]}
15... Qd8 {[%clk 0:02:33.5]} 16. Ne5 {[%clk 0:02:54.2]} 16... Ne7 {[%clk
0:02:02.9]} 17. Nc5 {[%clk 0:02:46.5]} 17... Bxc5 {[%clk 0:01:18.3]} 18. dxc5
{[%clk 0:02:47.6]} 18... Nc6 {[%clk 0:01:05.8]} 19. f4 {[%clk 0:02:18]} 19... g6
{[%clk 0:00:58.4]} 20. Ng4 {[%clk 0:02:06.8]} 20... Nxg4 {[%clk 0:00:56.7]} 21.
Qxg4 {[%clk 0:02:08.7]} 21... e5 {[%clk 0:00:49.9]} 22. Qg3 {[%clk 0:02:01.8]}
22... exf4 {[%clk 0:00:42.2]} 23. Rxf4 {[%clk 0:02:01.1]} 23... Rxf4 {[%clk
0:00:41.8]} 24. Qxf4 {[%clk 0:02:02.2]} 24... Rf8 {[%clk 0:00:36.6]} 25. Qg3
{[%clk 0:01:43.2]} 25... Qe7 {[%clk 0:00:35.4]} 26. Bxg6 {[%clk 0:01:29.4]}
26... Qxc5+ {[%clk 0:00:22.3]} 27. Kh1 {[%clk 0:01:28.7]} 27... Qf2 {[%clk
0:00:19.4]} 28. Bxh7+ {[%clk 0:01:27.7]} 28... Kxh7 {[%clk 0:00:19.6]} 29. Qg7#
{[%clk 0:01:28.2]} 1-0

[Event "*** Titled Tuesday Blitz"]
[Site "Chess.com"]
[Date "2018.01.02"]
[Round "1"]
[White "Muracle"]
[Black "jup1978"]
[Result "1-0"]
[WhiteElo "2502"]
[BlackElo "2207"]
[TimeControl "180+2"]
[EndTime "13:06:39 PST"]
[Termination "Muracle won by resignation"]

1. Nf3 {[%clk 0:01:39.8]} 1... d5 {[%clk 0:02:59.9]} 2. g3 {[%clk 0:01:38.8]}
2... c6 {[%clk 0:03:00.5]} 3. Bg2 {[%clk 0:01:40.2]} 3... Bg4 {[%clk 0:03:01.9]}
4. O-O {[%clk 0:01:42.1]} 4... Nd7 {[%clk 0:03:02.8]} 5. d4 {[%clk 0:01:43.5]}
5... e6 {[%clk 0:03:03.3]} 6. c4 {[%clk 0:01:44.1]} 6... Ngf6 {[%clk 0:03:04.5]}
7. Nc3 {[%clk 0:01:44.9]} 7... Bxf3 {[%clk 0:03:03.6]} 8. Bxf3 {[%clk
0:01:45.7]} 8... Bb4 {[%clk 0:03:03.4]} 9. cxd5 {[%clk 0:01:46.1]} 9... exd5
{[%clk 0:03:03.1]} 10. a3 {[%clk 0:01:46.3]} 10... Bd6 {[%clk 0:03:03.1]} 11. e4
{[%clk 0:01:47]} 11... dxe4 {[%clk 0:03:01.9]} 12. Nxe4 {[%clk 0:01:48.9]} 12...
Nxe4 {[%clk 0:03:02.6]} 13. Bxe4 {[%clk 0:01:50.8]} 13... O-O {[%clk 0:03:02.8]}
14. Qc2 {[%clk 0:01:51.1]} 14... Nf6 {[%clk 0:03:03.3]} 15. Bg5 {[%clk
0:01:51.2]} 15... h6 {[%clk 0:03:02.9]} 16. Bxf6 {[%clk 0:01:52.1]} 16... Qxf6
{[%clk 0:03:04.8]} 17. Rad1 {[%clk 0:01:53.3]} 17... Rac8 {[%clk 0:03:04.2]} 18.
Qb1 {[%clk 0:01:53]} 18... b6 {[%clk 0:03:01.8]} 19. b4 {[%clk 0:01:54]} 19...
Rfd8 {[%clk 0:02:57.9]} 20. Bg2 {[%clk 0:01:52]} 20... c5 {[%clk 0:02:58.5]} 21.
dxc5 {[%clk 0:01:50.8]} 21... bxc5 {[%clk 0:03:00.4]} 22. b5 {[%clk 0:01:51.8]}
22... Bc7 {[%clk 0:02:59.2]} 23. a4 {[%clk 0:01:51.3]} 23... Bb6 {[%clk
0:02:59]} 24. Qa2 {[%clk 0:01:43.5]} 24... Ba5 {[%clk 0:02:54.3]} 25. Qc4 {[%clk
0:01:39.6]} 25... Bb6 {[%clk 0:02:52]} 26. Bd5 {[%clk 0:01:36.4]} 26... g6
{[%clk 0:02:50.6]} 27. Bb7 {[%clk 0:01:30.8]} 27... Rb8 {[%clk 0:02:50.6]} 28.
Bg2 {[%clk 0:01:28.6]} 28... Kg7 {[%clk 0:02:50.7]} 29. Ra1 {[%clk 0:01:22]}
29... Qd4 {[%clk 0:02:32.4]} 30. Qxd4+ {[%clk 0:01:16.6]} 30... cxd4 {[%clk
0:02:34.3]} 31. a5 {[%clk 0:01:17.6]} 31... Bc5 {[%clk 0:02:35.3]} 32. b6 {[%clk
0:01:08.7]} 32... Rd7 {[%clk 0:02:28.3]} 33. b7 {[%clk 0:01:02.6]} 33... a6
{[%clk 0:02:21.3]} 34. Rfc1 {[%clk 0:00:50.7]} 34... Bb4 {[%clk 0:02:22.1]} 35.
Rc8 {[%clk 0:00:43]} 35... Rd8 {[%clk 0:02:18.6]} 36. Rxd8 {[%clk 0:00:34]}
36... Rxd8 {[%clk 0:02:20.5]} 37. Rb1 {[%clk 0:00:35]} 37... Bd6 {[%clk
0:02:18.9]} 38. Rb6 {[%clk 0:00:29]} 38... Bc7 {[%clk 0:02:17.4]} 39. Rc6 {[%clk
0:00:28.9]} 39... Be5 {[%clk 0:02:09.1]} 40. Rc8 {[%clk 0:00:27.8]} 40... Rd6
{[%clk 0:02:06.8]} 41. b8=Q {[%clk 0:00:28.3]} 1-0

[Event "*** Titled Tuesday Blitz"]
[Site "Chess.com"]
[Date "2018.01.02"]
[Round "1"]
[White "ChessQueen"]
[Black "hypert"]
[Result "1-0"]
[WhiteElo "2605"]
[BlackElo "2313"]
[TimeControl "180+2"]
[EndTime "13:06:45 PST"]
[Termination "ChessQueen won on time"]

1. e4 {[%clk 0:03:01.9]} 1... c5 {[%clk 0:03:00.5]} 2. c3 {[%clk 0:03:01.5]}
2... d5 {[%clk 0:03:00.9]} 3. exd5 {[%clk 0:03:02.1]} 3... Qxd5 {[%clk
0:03:02.8]} 4. d4 {[%clk 0:03:03.4]} 4... Nc6 {[%clk 0:03:02.7]} 5. Nf3 {[%clk
0:03:03.3]} 5... Bf5 {[%clk 0:02:57.1]} 6. Be3 {[%clk 0:02:56.9]} 6... Nf6
{[%clk 0:02:51.4]} 7. c4 {[%clk 0:02:52.7]} 7... Qd7 {[%clk 0:02:14.2]} 8. d5
{[%clk 0:02:16.5]} 8... Nb4 {[%clk 0:01:54.5]} 9. Na3 {[%clk 0:02:17.5]} 9... e6
{[%clk 0:01:40.3]} 10. dxe6 {[%clk 0:02:16.9]} 10... Qxe6 {[%clk 0:01:20.8]} 11.
Qa4+ {[%clk 0:01:57.2]} 11... Qd7 {[%clk 0:01:13.6]} 12. Qxd7+ {[%clk
0:01:57.6]} 12... Bxd7 {[%clk 0:01:15.5]} 13. Be2 {[%clk 0:01:52.6]} 13... Be7
{[%clk 0:01:11.8]} 14. O-O {[%clk 0:01:51.1]} 14... O-O {[%clk 0:01:03.1]} 15.
Ne5 {[%clk 0:01:51.9]} 15... Be6 {[%clk 0:00:46.6]} 16. Rfc1 {[%clk 0:01:40.6]}
16... Rad8 {[%clk 0:00:30.9]} 17. Nb5 {[%clk 0:01:39.3]} 17... a6 {[%clk
0:00:24.3]} 18. a3 {[%clk 0:01:32.2]} 18... axb5 {[%clk 0:00:20.6]} 19. axb4
{[%clk 0:01:33.2]} 19... bxc4 {[%clk 0:00:19.3]} 20. bxc5 {[%clk 0:01:30.3]}
20... Ne4 {[%clk 0:00:12.1]} 21. Bxc4 {[%clk 0:01:27]} 21... Bxc4 {[%clk
0:00:07]} 22. Rxc4 {[%clk 0:01:27.9]} 22... Nd2 {[%clk 0:00:06.6]} 23. Rb4
{[%clk 0:01:25.7]} 23... Bf6 {[%clk 0:00:04.2]} 24. Ng4 {[%clk 0:01:24.7]} 24...
Rfe8 {[%clk 0:00:02.4]} 25. Nxf6+ {[%clk 0:01:24.5]} 25... gxf6 {[%clk
0:00:04.3]} 26. h3 {[%clk 0:01:17.6]} 1-0

[Event "*** Titled Tuesday Blitz"]
[Site "Chess.com"]
[Date "2018.01.02"]
[Round "1"]
[White "joppie2"]
[Black "abruptum"]
[Result "1-0"]
[WhiteElo "2609"]
[BlackElo "2318"]
[TimeControl "180+2"]
[EndTime "13:06:46 PST"]
[Termination "joppie2 won on time"]

1. e4 {[%clk 0:03:01.9]} 1... g6 {[%clk 0:03:00.5]} 2. d4 {[%clk 0:03:02]} 2...
Bg7 {[%clk 0:03:01.4]} 3. Nf3 {[%clk 0:03:03.5]} 3... d6 {[%clk 0:03:01.9]} 4.
Bd3 {[%clk 0:03:05]} 4... Nf6 {[%clk 0:03:02.1]} 5. O-O {[%clk 0:03:05.9]} 5...
O-O {[%clk 0:03:02.1]} 6. Re1 {[%clk 0:03:07.3]} 6... Nc6 {[%clk 0:03:02.4]} 7.
c3 {[%clk 0:03:07]} 7... Bg4 {[%clk 0:02:55.8]} 8. Nbd2 {[%clk 0:03:05.6]} 8...
e5 {[%clk 0:02:55]} 9. h3 {[%clk 0:03:07]} 9... Bd7 {[%clk 0:02:41.6]} 10. a3
{[%clk 0:03:02.6]} 10... Re8 {[%clk 0:02:38.1]} 11. b4 {[%clk 0:02:55.2]} 11...
d5 {[%clk 0:02:29.3]} 12. dxe5 {[%clk 0:02:43.3]} 12... Nxe5 {[%clk 0:02:29.7]}
13. Nxe5 {[%clk 0:02:44.1]} 13... Rxe5 {[%clk 0:02:30.6]} 14. Nf3 {[%clk
0:02:45.6]} 14... Re8 {[%clk 0:02:26.5]} 15. e5 {[%clk 0:02:46]} 15... Ne4
{[%clk 0:02:25.6]} 16. Bxe4 {[%clk 0:02:43.8]} 16... dxe4 {[%clk 0:02:26.9]} 17.
Rxe4 {[%clk 0:02:43.9]} 17... Bc6 {[%clk 0:02:24.4]} 18. Rd4 {[%clk 0:02:32.2]}
18... Qc8 {[%clk 0:02:19.3]} 19. Bf4 {[%clk 0:02:31.2]} 19... Qf5 {[%clk
0:02:15.6]} 20. g4 {[%clk 0:02:04.2]} 20... Bxf3 {[%clk 0:02:04.3]} 21. Qxf3
{[%clk 0:01:57.4]} 21... Qc2 {[%clk 0:02:05.3]} 22. Qxb7 {[%clk 0:01:57.1]}
22... Qxc3 {[%clk 0:02:03.8]} 23. Rad1 {[%clk 0:01:54.2]} 23... Qxh3 {[%clk
0:02:04.6]} 24. Bg3 {[%clk 0:01:54.9]} 24... Rac8 {[%clk 0:01:37.7]} 25. Qf3
{[%clk 0:01:46.1]} 25... Bxe5 {[%clk 0:01:30.8]} 26. Rd7 {[%clk 0:01:44.7]}
26... Rf8 {[%clk 0:01:22.9]} 27. Re1 {[%clk 0:01:44.5]} 27... Bxg3 {[%clk
0:01:23.3]} 28. fxg3 {[%clk 0:01:46.4]} 28... Qh6 {[%clk 0:01:15.3]} 29. Qf4
{[%clk 0:01:47.4]} 29... Qh3 {[%clk 0:01:11.3]} 30. Ree7 {[%clk 0:01:47.1]} 1-0

[Event "*** Titled Tuesday Blitz"]
[Site "Chess.com"]
[Date "2018.01.02"]
[Round "1"]
[White "CookiesAndIceCream"]
[Black "Vrolijk"]
[Result "0-1"]
[WhiteElo "2041"]
[BlackElo "2447"]
[TimeControl "180+2"]
[EndTime "13:06:47 PST"]
[Termination "Vrolijk won by checkmate"]

1. e4 {[%clk 0:03:01.9]} 1... c6 {[%clk 0:02:59.3]} 2. d4 {[%clk 0:03:02.4]}
2... d5 {[%clk 0:03:01.2]} 3. e5 {[%clk 0:03:03.7]} 3... Bf5 {[%clk 0:02:59.9]}
4. Nf3 {[%clk 0:03:05]} 4... e6 {[%clk 0:03:01.3]} 5. Be2 {[%clk 0:03:06.4]}
5... Ne7 {[%clk 0:03:02.8]} 6. O-O {[%clk 0:03:07.7]} 6... Ng6 {[%clk
0:03:02.9]} 7. Nbd2 {[%clk 0:03:07.8]} 7... Nf4 {[%clk 0:03:02.3]} 8. Nb3 {[%clk
0:02:58.8]} 8... Nxe2+ {[%clk 0:03:01.5]} 9. Qxe2 {[%clk 0:02:59.8]} 9... Be7
{[%clk 0:03:03]} 10. a4 {[%clk 0:02:58.2]} 10... Kf8 {[%clk 0:03:02.1]} 11. a5
{[%clk 0:02:54.2]} 11... Kg8 {[%clk 0:03:01.6]} 12. Be3 {[%clk 0:02:37.5]} 12...
h6 {[%clk 0:02:59.7]} 13. Ne1 {[%clk 0:02:22.9]} 13... Kh7 {[%clk 0:02:56.1]}
14. Nd3 {[%clk 0:02:22.8]} 14... Rf8 {[%clk 0:02:51.7]} 15. g4 {[%clk
0:02:19.5]} 15... Bg6 {[%clk 0:02:47.4]} 16. f4 {[%clk 0:02:19.6]} 16... Be4
{[%clk 0:02:47]} 17. Nf2 {[%clk 0:02:15.3]} 17... Bg6 {[%clk 0:02:39.3]} 18. Nd3
{[%clk 0:02:09.1]} 18... f5 {[%clk 0:02:34.8]} 19. exf6 {[%clk 0:02:05.7]} 19...
Bxf6 {[%clk 0:02:34.1]} 20. Ne5 {[%clk 0:02:01.7]} 20... Bxe5 {[%clk 0:02:29.7]}
21. fxe5 {[%clk 0:02:02.2]} 21... Nd7 {[%clk 0:02:22.9]} 22. Rxf8 {[%clk
0:01:58.2]} 22... Qxf8 {[%clk 0:02:05.1]} 23. Rf1 {[%clk 0:01:58.3]} 23... Qe7
{[%clk 0:01:49.4]} 24. h3 {[%clk 0:01:49.5]} 24... Rf8 {[%clk 0:01:42.5]} 25.
Kh2 {[%clk 0:01:46.6]} 25... Rxf1 {[%clk 0:01:42]} 26. Qxf1 {[%clk 0:01:45.6]}
26... Bxc2 {[%clk 0:01:43.6]} 27. Nc5 {[%clk 0:01:39.8]} 27... Nxc5 {[%clk
0:01:43.3]} 28. dxc5 {[%clk 0:01:41]} 28... Qe8 {[%clk 0:01:42.5]} 29. Qe1
{[%clk 0:01:25.7]} 29... Qg6 {[%clk 0:01:41.6]} 30. Qb4 {[%clk 0:01:25.4]} 30...
Qd3 {[%clk 0:01:30.5]} 31. Bf2 {[%clk 0:00:53.8]} 31... Qf1 {[%clk 0:01:25]} 32.
Kg3 {[%clk 0:00:36.7]} 32... Be4 {[%clk 0:01:24.1]} 33. Qd2 {[%clk 0:00:26]}
33... Qg2+ {[%clk 0:01:23.5]} 34. Kf4 {[%clk 0:00:27.6]} 34... Qf3# {[%clk
0:01:23.7]} 0-1

[Event "*** Titled Tuesday Blitz"]
[Site "Chess.com"]
[Date "2018.01.02"]
[Round "1"]
[White "Kirill_Klukin"]
[Black "tteshan"]
[Result "1-0"]
[WhiteElo "2441"]
[BlackElo "2021"]
[TimeControl "180+2"]
[EndTime "13:06:48 PST"]
[Termination "Kirill_Klukin won by resignation"]

1. d4 {[%clk 0:02:56.3]} 1... d5 {[%clk 0:03:00.7]} 2. Nf3 {[%clk 0:02:57.7]}
2... Nf6 {[%clk 0:03:01.1]} 3. c4 {[%clk 0:02:58.6]} 3... dxc4 {[%clk
0:03:01.8]} 4. e3 {[%clk 0:02:59.3]} 4... Bg4 {[%clk 0:03:02.8]} 5. Bxc4 {[%clk
0:03:00.4]} 5... e6 {[%clk 0:03:04]} 6. O-O {[%clk 0:02:58.8]} 6... a6 {[%clk
0:03:05.2]} 7. h3 {[%clk 0:02:58.4]} 7... Bh5 {[%clk 0:03:05.8]} 8. Nc3 {[%clk
0:02:59.8]} 8... Nbd7 {[%clk 0:03:05.6]} 9. Qe2 {[%clk 0:02:59.2]} 9... c5
{[%clk 0:03:04.2]} 10. Rd1 {[%clk 0:03:00.1]} 10... cxd4 {[%clk 0:03:02.8]} 11.
Rxd4 {[%clk 0:02:49.9]} 11... Bc5 {[%clk 0:03:00.6]} 12. Rd1 {[%clk 0:02:48.9]}
12... Qe7 {[%clk 0:02:59.6]} 13. a3 {[%clk 0:02:38.6]} 13... O-O {[%clk
0:02:58.8]} 14. g4 {[%clk 0:02:36.5]} 14... Bg6 {[%clk 0:02:59.1]} 15. b4 {[%clk
0:02:37.8]} 15... Bd6 {[%clk 0:02:56.7]} 16. Bb2 {[%clk 0:02:37.7]} 16... Nb6
{[%clk 0:02:56.4]} 17. Bb3 {[%clk 0:02:37.5]} 17... Ne4 {[%clk 0:02:48.7]} 18.
Nxe4 {[%clk 0:02:32.4]} 18... Bxe4 {[%clk 0:02:49.1]} 19. Ne5 {[%clk 0:02:09.8]}
19... Bd5 {[%clk 0:02:43.4]} 20. Bxd5 {[%clk 0:02:09.5]} 20... Nxd5 {[%clk
0:02:43.9]} 21. Nc4 {[%clk 0:02:08.8]} 21... Rfd8 {[%clk 0:02:39.2]} 22. Qf3
{[%clk 0:02:08.3]} 22... Rac8 {[%clk 0:02:22.7]} 23. Rac1 {[%clk 0:02:08.1]}
23... b5 {[%clk 0:02:17.5]} 24. Na5 {[%clk 0:02:06.4]} 24... Qd7 {[%clk
0:02:07.9]} 25. e4 {[%clk 0:01:43.6]} 25... Rxc1 {[%clk 0:02:06.4]} 26. Bxc1
{[%clk 0:01:23.4]} 26... Ne7 {[%clk 0:01:34.2]} 27. e5 {[%clk 0:01:21.2]} 27...
Nc8 {[%clk 0:01:28.7]} 28. exd6 {[%clk 0:01:20.8]} 28... Nxd6 {[%clk 0:01:29.8]}
29. Bf4 {[%clk 0:01:21.2]} 29... Qe7 {[%clk 0:01:23.9]} 30. Nc6 {[%clk
0:01:19.8]} 30... Qb7 {[%clk 0:01:13]} 31. Rxd6 {[%clk 0:01:14.4]} 31... Rxd6
{[%clk 0:01:06.4]} 32. Bxd6 {[%clk 0:01:16.3]} 32... Qd7 {[%clk 0:01:07.3]} 33.
Ne7+ {[%clk 0:01:12]} 33... Kf8 {[%clk 0:01:03.6]} 34. Qa8+ {[%clk 0:01:12.9]}
34... Qe8 {[%clk 0:01:03.8]} 35. Ng6+ {[%clk 0:01:14.4]} 1-0

[Event "*** Titled Tuesday Blitz"]
[Site "Chess.com"]
[Date "2018.01.02"]
[Round "1"]
[White "Rhinos1"]
[Black "ftorodent"]
[Result "0-1"]
[WhiteElo "2021"]
[BlackElo "2447"]
[TimeControl "180+2"]
[EndTime "13:07:00 PST"]
[Termination "ftorodent won on time"]

1. e4 {[%clk 0:03:01.7]} 1... c5 {[%clk 0:02:59.1]} 2. d4 {[%clk 0:03:01.9]}
2... cxd4 {[%clk 0:02:59.3]} 3. c3 {[%clk 0:03:02.5]} 3... Nf6 {[%clk
0:02:59.9]} 4. e5 {[%clk 0:03:02.8]} 4... Nd5 {[%clk 0:03:00.8]} 5. cxd4 {[%clk
0:03:04.7]} 5... e6 {[%clk 0:02:57.2]} 6. Nc3 {[%clk 0:03:03.2]} 6... Nxc3
{[%clk 0:02:57.1]} 7. bxc3 {[%clk 0:03:03.9]} 7... Qc7 {[%clk 0:02:58.5]} 8. Bb2
{[%clk 0:03:01.8]} 8... d6 {[%clk 0:02:52.7]} 9. Nf3 {[%clk 0:02:39.7]} 9... Nd7
{[%clk 0:02:50.7]} 10. Bb5 {[%clk 0:02:31.7]} 10... a6 {[%clk 0:02:50]} 11.
Bxd7+ {[%clk 0:02:28.8]} 11... Bxd7 {[%clk 0:02:50.9]} 12. O-O {[%clk
0:02:30.7]} 12... Be7 {[%clk 0:02:50.9]} 13. Re1 {[%clk 0:02:13.7]} 13... O-O
{[%clk 0:02:50.8]} 14. Qd2 {[%clk 0:02:05.4]} 14... Bc6 {[%clk 0:02:48.6]} 15.
Qf4 {[%clk 0:01:53.6]} 15... Bd5 {[%clk 0:02:39.6]} 16. exd6 {[%clk 0:01:37.2]}
16... Bxd6 {[%clk 0:02:39.6]} 17. Qh4 {[%clk 0:01:38.5]} 17... Bxf3 {[%clk
0:02:39.1]} 18. gxf3 {[%clk 0:01:38.7]} 18... Qc4 {[%clk 0:02:30.5]} 19. Re3
{[%clk 0:01:33.6]} 19... Rfd8 {[%clk 0:02:26.2]} 20. f4 {[%clk 0:01:27.4]} 20...
Bf8 {[%clk 0:02:25.5]} 21. Rh3 {[%clk 0:01:01.1]} 21... h6 {[%clk 0:02:21.2]}
22. Rg3 {[%clk 0:01:01.9]} 22... g6 {[%clk 0:02:13]} 23. Bc1 {[%clk 0:00:46.8]}
23... Qe2 {[%clk 0:01:43.3]} 24. Be3 {[%clk 0:00:20.6]} 24... Rd5 {[%clk
0:01:38.9]} 25. Qh3 {[%clk 0:00:08.5]} 25... Rc8 {[%clk 0:01:33.5]} 26. Rxg6+
{[%clk 0:00:06.2]} 26... Kh7 {[%clk 0:01:31.9]} 27. Rg3 {[%clk 0:00:04.1]} 27...
Rf5 {[%clk 0:01:29.6]} 0-1

[Event "*** Titled Tuesday Blitz"]
[Site "Chess.com"]
[Date "2018.01.02"]
[Round "1"]
[White "AndrewMcStone"]
[Black "Frolik67"]
[Result "0-1"]
[WhiteElo "2084"]
[BlackElo "2460"]
[TimeControl "180+2"]
[EndTime "13:07:05 PST"]
[Termination "Frolik67 won by resignation"]

1. d4 {[%clk 0:03:01.9]} 1... e6 {[%clk 0:02:59.2]} 2. c4 {[%clk 0:03:02.7]}
2... b6 {[%clk 0:02:57.6]} 3. e4 {[%clk 0:02:58.8]} 3... Bb7 {[%clk 0:02:58.1]}
4. Qc2 {[%clk 0:02:48.3]} 4... d5 {[%clk 0:02:56.1]} 5. cxd5 {[%clk 0:02:31.6]}
5... exd5 {[%clk 0:02:58]} 6. e5 {[%clk 0:02:31.1]} 6... c5 {[%clk 0:02:56.2]}
7. Bb5+ {[%clk 0:02:27.7]} 7... Nc6 {[%clk 0:02:53.2]} 8. Nf3 {[%clk 0:02:24.7]}
8... a6 {[%clk 0:02:52.9]} 9. Bxc6+ {[%clk 0:02:19.7]} 9... Bxc6 {[%clk
0:02:54.8]} 10. O-O {[%clk 0:02:16.3]} 10... Nh6 {[%clk 0:02:53.4]} 11. e6
{[%clk 0:01:45.5]} 11... fxe6 {[%clk 0:02:51.8]} 12. Ng5 {[%clk 0:01:31.7]}
12... Qf6 {[%clk 0:02:39.7]} 13. Re1 {[%clk 0:01:22.9]} 13... Bd7 {[%clk
0:02:37.9]} 14. Nxh7 {[%clk 0:01:07.7]} 14... Qf5 {[%clk 0:02:35.3]} 15. Qxf5
{[%clk 0:00:46.8]} 15... Nxf5 {[%clk 0:02:37.2]} 16. Nxf8 {[%clk 0:00:47.8]}
16... Kxf8 {[%clk 0:02:38.4]} 17. dxc5 {[%clk 0:00:41.8]} 17... bxc5 {[%clk
0:02:40.3]} 18. Bf4 {[%clk 0:00:39.7]} 18... Kf7 {[%clk 0:02:34.9]} 19. Nd2
{[%clk 0:00:33]} 19... Nd4 {[%clk 0:02:18.2]} 20. Rac1 {[%clk 0:00:27.4]} 20...
Rac8 {[%clk 0:02:12.7]} 21. Be5 {[%clk 0:00:28.2]} 21... Bb5 {[%clk 0:02:05.2]}
22. b3 {[%clk 0:00:14.4]} 22... Ne2+ {[%clk 0:02:04.4]} 23. Rxe2 {[%clk
0:00:13.9]} 23... Bxe2 {[%clk 0:02:06.3]} 24. f4 {[%clk 0:00:08.5]} 24... c4
{[%clk 0:02:06.2]} 25. Kf2 {[%clk 0:00:06.5]} 25... cxb3 {[%clk 0:02:03.1]} 26.
Rxc8 {[%clk 0:00:04.4]} 26... Rxc8 {[%clk 0:02:05]} 27. Kxe2 {[%clk 0:00:05.1]}
27... bxa2 {[%clk 0:02:04.9]} 28. Nb3 {[%clk 0:00:03.7]} 28... Rc2+ {[%clk
0:02:06]} 29. Kf3 {[%clk 0:00:04.3]} 29... a5 {[%clk 0:02:01.2]} 30. Nxa5 {[%clk
0:00:04.5]} 30... Rc1 {[%clk 0:02:02]} 31. Nb3 {[%clk 0:00:05]} 31... Rb1 {[%clk
0:02:02.6]} 32. Na1 {[%clk 0:00:04.8]} 32... g6 {[%clk 0:02:04]} 33. Kg4 {[%clk
0:00:03.7]} 33... Rd1 {[%clk 0:02:04.4]} 34. g3 {[%clk 0:00:04.3]} 34... d4
{[%clk 0:02:05.5]} 35. Nb3 {[%clk 0:00:03.9]} 35... d3 {[%clk 0:02:05.9]} 36. h4
{[%clk 0:00:04.1]} 36... Rb1 {[%clk 0:02:06.9]} 37. Nd2 {[%clk 0:00:02.7]} 37...
a1=Q {[%clk 0:02:03.8]} 38. Bxa1 {[%clk 0:00:03.4]} 38... Rxa1 {[%clk
0:02:05.7]} 39. Kf3 {[%clk 0:00:04.7]} 39... Re1 {[%clk 0:02:06.8]} 40. Ne4
{[%clk 0:00:04.1]} 40... Rxe4 {[%clk 0:02:07.3]} 41. Kxe4 {[%clk 0:00:04.7]}
41... d2 {[%clk 0:02:08.8]} 0-1